[Event "*** SCC Grand Prix: Titled Tuesday Blitz"]
[Site "Chess.com"]
[Date "2020.08.11"]
[Round "1"]
[White "zala02"]
[Black "Sashadav97"]
[Result "0-1"]
[WhiteElo "2219"]
[BlackElo "2580"]
[TimeControl "180+1"]
[EndTime "10:05:52 PDT"]
[Termination "Sashadav97 won by checkmate"]

1. d4 {[%clk 0:03:00.6]} 1... d5 {[%clk 0:02:57.4]} 2. c4 {[%clk 0:03:00]} 2...
e6 {[%clk 0:02:57.2]} 3. Nc3 {[%clk 0:02:59.5]} 3... Nf6 {[%clk 0:02:57.3]} 4.
Nf3 {[%clk 0:02:53.4]} 4... c6 {[%clk 0:02:51.6]} 5. Bg5 {[%clk 0:02:52.1]} 5...
dxc4 {[%clk 0:02:45.7]} 6. e4 {[%clk 0:02:46.2]} 6... b5 {[%clk 0:02:45.1]} 7.
e5 {[%clk 0:02:41.5]} 7... h6 {[%clk 0:02:45.2]} 8. Bh4 {[%clk 0:02:39.5]} 8...
g5 {[%clk 0:02:43.9]} 9. Nxg5 {[%clk 0:02:39.2]} 9... hxg5 {[%clk 0:02:40.5]}
10. Bxg5 {[%clk 0:02:40.1]} 10... Be7 {[%clk 0:02:40.6]} 11. exf6 {[%clk
0:02:32.7]} 11... Bxf6 {[%clk 0:02:41.5]} 12. Bxf6 {[%clk 0:02:30.3]} 12... Qxf6
{[%clk 0:02:42.4]} 13. g3 {[%clk 0:02:07.6]} 13... Bb7 {[%clk 0:02:42]} 14. Bg2
{[%clk 0:02:07]} 14... Na6 {[%clk 0:02:41.5]} 15. Nxb5 {[%clk 0:01:25.4]} 15...
cxb5 {[%clk 0:02:17.7]} 16. Bxb7 {[%clk 0:01:24.3]} 16... Nb4 {[%clk 0:02:18.3]}
17. O-O {[%clk 0:01:11.6]} 17... Rd8 {[%clk 0:01:52.7]} 18. d5 {[%clk
0:00:59.3]} 18... Nxd5 {[%clk 0:01:39.2]} 19. Bc6+ {[%clk 0:00:57.7]} 19... Ke7
{[%clk 0:01:38.2]} 20. Qe1 {[%clk 0:00:34.4]} 20... Qh6 {[%clk 0:01:29.9]} 21.
h4 {[%clk 0:00:24.7]} 21... Qxh4 {[%clk 0:01:29.4]} 22. Kg2 {[%clk 0:00:04.1]}
22... Qh3+ {[%clk 0:01:21.2]} 23. Kf3 {[%clk 0:00:04.4]} 23... Qf5+ {[%clk
0:01:21.4]} 24. Kg2 {[%clk 0:00:04.6]} 24... Nf4+ {[%clk 0:01:10.6]} 25. gxf4
{[%clk 0:00:03.4]} 25... Qg4# {[%clk 0:01:10.1]} 0-1

[Event "*** SCC Grand Prix: Titled Tuesday Blitz"]
[Site "Chess.com"]
[Date "2020.08.11"]
[Round "1"]
[White "Na_binci"]
[Black "sorito"]
[Result "0-1"]
[WhiteElo "1962"]
[BlackElo "2472"]
[TimeControl "180+1"]
[EndTime "10:05:52 PDT"]
[Termination "sorito won by resignation"]

1. d4 {[%clk 0:02:55.9]} 1... Nf6 {[%clk 0:02:58.4]} 2. c4 {[%clk 0:02:54.5]}
2... e6 {[%clk 0:02:58.1]} 3. Nf3 {[%clk 0:02:52.6]} 3... c5 {[%clk 0:02:54.4]}
4. e3 {[%clk 0:02:50.2]} 4... d5 {[%clk 0:02:51.3]} 5. cxd5 {[%clk 0:02:51.1]}
5... exd5 {[%clk 0:02:50.7]} 6. Bb5+ {[%clk 0:02:51.1]} 6... Nc6 {[%clk
0:02:49.8]} 7. O-O {[%clk 0:02:46.9]} 7... a6 {[%clk 0:02:42]} 8. Bxc6+ {[%clk
0:02:41]} 8... bxc6 {[%clk 0:02:41.5]} 9. Ne5 {[%clk 0:02:41.5]} 9... Bd6 {[%clk
0:02:32.7]} 10. f4 {[%clk 0:02:31.9]} 10... Qc7 {[%clk 0:02:31.5]} 11. b3 {[%clk
0:02:24.7]} 11... O-O {[%clk 0:02:26.9]} 12. Bb2 {[%clk 0:02:20.7]} 12... Bf5
{[%clk 0:02:19]} 13. Nd2 {[%clk 0:02:19.5]} 13... cxd4 {[%clk 0:02:08]} 14. exd4
{[%clk 0:02:13.5]} 14... Qb6 {[%clk 0:02:04.3]} 15. Kh1 {[%clk 0:02:08.8]} 15...
Ra7 {[%clk 0:02:02]} 16. Rc1 {[%clk 0:02:07]} 16... c5 {[%clk 0:01:57.4]} 17.
dxc5 {[%clk 0:01:58.7]} 17... Bxc5 {[%clk 0:01:57.1]} 18. Ndf3 {[%clk
0:01:56.2]} 18... Rd8 {[%clk 0:01:52.8]} 19. Bd4 {[%clk 0:01:55.1]} 19... Rc7
{[%clk 0:01:37.8]} 20. Bxc5 {[%clk 0:00:37.6]} 20... Rxc5 {[%clk 0:01:38.7]} 21.
Qd4 {[%clk 0:00:37.8]} 21... Rdc8 {[%clk 0:01:17.2]} 22. Rxc5 {[%clk 0:00:34.2]}
22... Qxc5 {[%clk 0:01:16.9]} 23. Qxc5 {[%clk 0:00:28.8]} 23... Rxc5 {[%clk
0:01:16.8]} 24. Nd4 {[%clk 0:00:29.7]} 24... Be4 {[%clk 0:01:16.8]} 25. Kg1
{[%clk 0:00:25.2]} 25... h5 {[%clk 0:01:16.3]} 26. Kf2 {[%clk 0:00:23.5]} 26...
Rc3 {[%clk 0:01:10.9]} 27. Rd1 {[%clk 0:00:20.8]} 27... h4 {[%clk 0:01:08.9]}
28. Rd2 {[%clk 0:00:20.4]} 28... Bb1 {[%clk 0:01:07]} 29. Nef3 {[%clk 0:00:19]}
29... Ne4+ {[%clk 0:01:06.4]} 0-1

[Event "*** SCC Grand Prix: Titled Tuesday Blitz"]
[Site "Chess.com"]
[Date "2020.08.11"]
[Round "1"]
[White "Mikasinski"]
[Black "LyonBeast"]
[Result "0-1"]
[WhiteElo "2448"]
[BlackElo "3018"]
[TimeControl "180+1"]
[EndTime "10:05:53 PDT"]
[Termination "LyonBeast won by resignation"]

1. e4 {[%clk 0:03:00.9]} 1... e6 {[%clk 0:02:58.1]} 2. d4 {[%clk 0:03:00.7]}
2... d5 {[%clk 0:02:58.2]} 3. Nc3 {[%clk 0:03:00]} 3... Nf6 {[%clk 0:02:57.8]}
4. Bg5 {[%clk 0:02:59.3]} 4... dxe4 {[%clk 0:02:57.1]} 5. Nxe4 {[%clk
0:02:58.6]} 5... Nbd7 {[%clk 0:02:56.7]} 6. Nf3 {[%clk 0:02:54.1]} 6... Be7
{[%clk 0:02:56.4]} 7. Nxf6+ {[%clk 0:02:50.8]} 7... Bxf6 {[%clk 0:02:53.8]} 8.
h4 {[%clk 0:02:49.9]} 8... c5 {[%clk 0:02:45.9]} 9. c3 {[%clk 0:02:43.7]} 9...
cxd4 {[%clk 0:02:45.1]} 10. Bxf6 {[%clk 0:02:39.8]} 10... Nxf6 {[%clk 0:02:46]}
11. Bb5+ {[%clk 0:02:37.2]} 11... Bd7 {[%clk 0:02:45.3]} 12. Bxd7+ {[%clk
0:02:37.1]} 12... Qxd7 {[%clk 0:02:46.2]} 13. Qxd4 {[%clk 0:02:37]} 13... Qxd4
{[%clk 0:02:41.7]} 14. Nxd4 {[%clk 0:02:36.1]} 14... Ke7 {[%clk 0:02:41.8]} 15.
Ke2 {[%clk 0:02:27.6]} 15... Rhd8 {[%clk 0:02:40.3]} 16. Rad1 {[%clk 0:02:26.8]}
16... Rd5 {[%clk 0:02:39.6]} 17. Nc2 {[%clk 0:02:22.8]} 17... Re5+ {[%clk
0:02:38.3]} 18. Ne3 {[%clk 0:02:15.8]} 18... Nd5 {[%clk 0:02:36.2]} 19. g3
{[%clk 0:02:02.9]} 19... Nxe3 {[%clk 0:02:31.8]} 20. fxe3 {[%clk 0:02:02.5]}
20... Rc8 {[%clk 0:02:30.3]} 21. Rd4 {[%clk 0:02:00.7]} 21... Rb5 {[%clk
0:02:29.9]} 22. Rd2 {[%clk 0:01:52.2]} 22... Rc7 {[%clk 0:02:25.7]} 23. Rhd1
{[%clk 0:01:51.6]} 23... h6 {[%clk 0:02:22.3]} 24. Rc2 {[%clk 0:01:41.1]} 24...
Ra5 {[%clk 0:02:11.4]} 25. b3 {[%clk 0:01:39.6]} 25... Rac5 {[%clk 0:02:09.6]}
26. Rd3 {[%clk 0:01:32.6]} 26... b5 {[%clk 0:02:07.3]} 27. Kd2 {[%clk 0:01:31]}
27... f5 {[%clk 0:02:02.9]} 28. Kc1 {[%clk 0:01:18.6]} 28... Re5 {[%clk
0:01:57.4]} 29. Kb2 {[%clk 0:01:15.8]} 29... Rd7 {[%clk 0:01:54.3]} 30. Rcd2
{[%clk 0:01:10.4]} 30... Rxd3 {[%clk 0:01:54.3]} 31. Rxd3 {[%clk 0:01:10.7]}
31... Re4 {[%clk 0:01:55.2]} 32. Kc2 {[%clk 0:01:06.8]} 32... Rg4 {[%clk
0:01:54.7]} 33. Rd4 {[%clk 0:00:30.8]} 33... Rxg3 {[%clk 0:01:54.4]} 34. Kd3
{[%clk 0:00:30]} 34... g5 {[%clk 0:01:49.4]} 35. hxg5 {[%clk 0:00:30]} 35...
hxg5 {[%clk 0:01:50.3]} 36. a4 {[%clk 0:00:26.8]} 36... f4 {[%clk 0:01:47.7]}
37. axb5 {[%clk 0:00:26.8]} 37... Rxe3+ {[%clk 0:01:47.2]} 38. Kd2 {[%clk
0:00:26]} 38... Re5 {[%clk 0:01:45.6]} 39. c4 {[%clk 0:00:18.2]} 39... f3 {[%clk
0:01:45.4]} 40. Kc3 {[%clk 0:00:06.2]} 40... f2 {[%clk 0:01:44.8]} 0-1

[Event "*** SCC Grand Prix: Titled Tuesday Blitz"]
[Site "Chess.com"]
[Date "2020.08.11"]
[Round "1"]
[White "Arseniy_Nesterov"]
[Black "Mikhal867"]
[Result "1-0"]
[WhiteElo "2748"]
[BlackElo "2376"]
[TimeControl "180+1"]
[EndTime "10:05:54 PDT"]
[Termination "Arseniy_Nesterov won by checkmate"]

1. d4 {[%clk 0:03:00]} 1... g6 {[%clk 0:02:58.8]} 2. c4 {[%clk 0:03:00.3]} 2...
Bg7 {[%clk 0:02:58]} 3. Nf3 {[%clk 0:02:59.9]} 3... d6 {[%clk 0:02:57.2]} 4. g3
{[%clk 0:02:59.8]} 4... Nd7 {[%clk 0:02:53.1]} 5. Bg2 {[%clk 0:02:59.8]} 5... e5
{[%clk 0:02:50.6]} 6. Nc3 {[%clk 0:02:59.1]} 6... h6 {[%clk 0:02:46.6]} 7. O-O
{[%clk 0:02:58]} 7... Ne7 {[%clk 0:02:31.8]} 8. e4 {[%clk 0:02:57]} 8... O-O
{[%clk 0:02:30.6]} 9. Be3 {[%clk 0:02:55]} 9... f5 {[%clk 0:02:28.6]} 10. dxe5
{[%clk 0:02:52.6]} 10... dxe5 {[%clk 0:02:28]} 11. exf5 {[%clk 0:02:50]} 11...
gxf5 {[%clk 0:02:22.1]} 12. Qc1 {[%clk 0:02:44.9]} 12... Kh7 {[%clk 0:02:17.3]}
13. Rd1 {[%clk 0:02:44.5]} 13... c6 {[%clk 0:02:13.4]} 14. Rd6 {[%clk
0:02:35.4]} 14... Ng6 {[%clk 0:01:56.9]} 15. h4 {[%clk 0:02:16.4]} 15... Qe7
{[%clk 0:01:49.5]} 16. c5 {[%clk 0:02:14.3]} 16... f4 {[%clk 0:01:47.1]} 17. h5
{[%clk 0:02:11.1]} 17... Nh8 {[%clk 0:01:36.4]} 18. gxf4 {[%clk 0:02:09]} 18...
exf4 {[%clk 0:01:25.5]} 19. Bxf4 {[%clk 0:02:03.2]} 19... Nf7 {[%clk 0:01:07.2]}
20. Qc2+ {[%clk 0:01:57.9]} 20... Kh8 {[%clk 0:01:03.5]} 21. Re1 {[%clk
0:01:57.3]} 21... Qd8 {[%clk 0:00:57.3]} 22. Rg6 {[%clk 0:01:55.8]} 22... Nxc5
{[%clk 0:00:53.8]} 23. Rxg7 {[%clk 0:01:45.6]} 23... Qd3 {[%clk 0:00:49.2]} 24.
Rxf7 {[%clk 0:01:21.2]} 24... Qxc2 {[%clk 0:00:47.6]} 25. Rxf8+ {[%clk
0:01:08.6]} 25... Kg7 {[%clk 0:00:47.5]} 26. Rd8 {[%clk 0:01:08]} 26... Ne6
{[%clk 0:00:42.1]} 27. Rxe6 {[%clk 0:01:04.7]} 27... Bxe6 {[%clk 0:00:41]} 28.
Rxa8 {[%clk 0:01:05]} 28... Qxb2 {[%clk 0:00:38.8]} 29. Rxa7 {[%clk 0:01:03.7]}
29... Kf6 {[%clk 0:00:29.7]} 30. Be5+ {[%clk 0:01:01.7]} 30... Kf5 {[%clk
0:00:27]} 31. Bh3# {[%clk 0:01:01.9]} 1-0

[Event "*** SCC Grand Prix: Titled Tuesday Blitz"]
[Site "Chess.com"]
[Date "2020.08.11"]
[Round "1"]
[White "semchik73"]
[Black "jacky72"]
[Result "0-1"]
[WhiteElo "2291"]
[BlackElo "2638"]
[TimeControl "180+1"]
[EndTime "10:05:57 PDT"]
[Termination "jacky72 won by checkmate"]

1. Nf3 {[%clk 0:02:59.4]} 1... g6 {[%clk 0:02:58.3]} 2. c4 {[%clk 0:02:59.1]}
2... Nf6 {[%clk 0:02:58.4]} 3. Nc3 {[%clk 0:02:59.6]} 3... Bg7 {[%clk
0:02:58.4]} 4. d4 {[%clk 0:03:00]} 4... O-O {[%clk 0:02:59.3]} 5. e3 {[%clk
0:03:00.3]} 5... d6 {[%clk 0:03:00.2]} 6. Be2 {[%clk 0:03:00.6]} 6... b6 {[%clk
0:03:01]} 7. O-O {[%clk 0:03:01]} 7... Bb7 {[%clk 0:03:01.9]} 8. b3 {[%clk
0:02:59.9]} 8... Nbd7 {[%clk 0:03:02.8]} 9. Bb2 {[%clk 0:02:59.9]} 9... Ne4
{[%clk 0:03:03.3]} 10. Nxe4 {[%clk 0:02:58.1]} 10... Bxe4 {[%clk 0:03:04.2]} 11.
Nd2 {[%clk 0:02:58.1]} 11... Bb7 {[%clk 0:03:04.5]} 12. Bf3 {[%clk 0:02:57.3]}
12... Qc8 {[%clk 0:03:05.4]} 13. Rc1 {[%clk 0:02:50.6]} 13... e5 {[%clk
0:03:04.7]} 14. dxe5 {[%clk 0:02:35.5]} 14... Nxe5 {[%clk 0:02:59.9]} 15. Be2
{[%clk 0:02:25]} 15... Nf3+ {[%clk 0:02:50.1]} 16. Bxf3 {[%clk 0:02:19]} 16...
Bxb2 {[%clk 0:02:51]} 17. Rc2 {[%clk 0:02:15.7]} 17... Bg7 {[%clk 0:02:51.3]}
18. Ne4 {[%clk 0:02:09.6]} 18... a5 {[%clk 0:02:47.7]} 19. Rd2 {[%clk
0:02:02.1]} 19... Re8 {[%clk 0:02:46.9]} 20. Ng5 {[%clk 0:01:52.7]} 20... h6
{[%clk 0:02:44.6]} 21. Bxb7 {[%clk 0:01:51.2]} 21... Qxb7 {[%clk 0:02:43.7]} 22.
Nf3 {[%clk 0:01:51]} 22... a4 {[%clk 0:02:43.2]} 23. Rd5 {[%clk 0:01:48.8]}
23... axb3 {[%clk 0:02:42.6]} 24. axb3 {[%clk 0:01:47.7]} 24... Ra1 {[%clk
0:02:42.6]} 25. Qd2 {[%clk 0:01:45.9]} 25... Rea8 {[%clk 0:02:42.5]} 26. g3
{[%clk 0:01:41.9]} 26... Qc8 {[%clk 0:02:38.2]} 27. Rxa1 {[%clk 0:01:36.3]}
27... Rxa1+ {[%clk 0:02:36.3]} 28. Kg2 {[%clk 0:01:36.7]} 28... Qa8 {[%clk
0:02:36.3]} 29. Nd4 {[%clk 0:01:25.5]} 29... Ra2 {[%clk 0:02:25.1]} 30. Qd3
{[%clk 0:01:24.1]} 30... Qa3 {[%clk 0:02:13.9]} 31. Qe4 {[%clk 0:01:12.8]} 31...
Qb2 {[%clk 0:02:08.2]} 32. Qf3 {[%clk 0:01:05.4]} 32... Ra1 {[%clk 0:02:07.4]}
33. Kh3 {[%clk 0:00:38.1]} 33... Qb1 {[%clk 0:01:44.1]} 34. Ne2 {[%clk
0:00:32.8]} 34... Qf1+ {[%clk 0:01:43.1]} 35. Kg4 {[%clk 0:00:32.8]} 35... Ra2
{[%clk 0:01:43.7]} 36. Nd4 {[%clk 0:00:20.7]} 36... h5+ {[%clk 0:01:42.7]} 37.
Kg5 {[%clk 0:00:19.7]} 37... Rxf2 {[%clk 0:01:43.6]} 38. Qe4 {[%clk 0:00:18.6]}
38... Rxh2 {[%clk 0:01:35.6]} 39. Qe8+ {[%clk 0:00:17.7]} 39... Kh7 {[%clk
0:01:36]} 40. Nf5 {[%clk 0:00:09]} 40... f6# {[%clk 0:01:34.7]} 0-1

[Event "*** SCC Grand Prix: Titled Tuesday Blitz"]
[Site "Chess.com"]
[Date "2020.08.11"]
[Round "1"]
[White "IMHansNiemann"]
[Black "Steven_Rojas"]
[Result "1-0"]
[WhiteElo "2924"]
[BlackElo "2435"]
[TimeControl "180+1"]
[EndTime "10:05:59 PDT"]
[Termination "IMHansNiemann won by resignation"]

1. d4 {[%clk 0:02:59.6]} 1... d5 {[%clk 0:02:58.1]} 2. c4 {[%clk 0:02:28.7]}
2... e6 {[%clk 0:02:57.6]} 3. Nf3 {[%clk 0:02:16.9]} 3... Nf6 {[%clk 0:02:57.4]}
4. g3 {[%clk 0:02:03.6]} 4... Be7 {[%clk 0:02:56.7]} 5. Bg2 {[%clk 0:02:00.4]}
5... O-O {[%clk 0:02:57]} 6. O-O {[%clk 0:02:00.1]} 6... dxc4 {[%clk 0:02:56.9]}
7. Qc2 {[%clk 0:01:59.4]} 7... a6 {[%clk 0:02:55.9]} 8. a4 {[%clk 0:01:58.4]}
8... Bd7 {[%clk 0:02:55.7]} 9. Qxc4 {[%clk 0:01:58.1]} 9... Bc6 {[%clk
0:02:55.6]} 10. Bg5 {[%clk 0:01:57.9]} 10... Nbd7 {[%clk 0:01:41.3]} 11. Nc3
{[%clk 0:01:54.9]} 11... h6 {[%clk 0:01:35.7]} 12. Bxf6 {[%clk 0:01:53.3]} 12...
Nxf6 {[%clk 0:01:34.2]} 13. Rfd1 {[%clk 0:01:53.7]} 13... Bd5 {[%clk 0:00:36.6]}
14. Qd3 {[%clk 0:01:50.9]} 14... Bb4 {[%clk 0:00:37.1]} 15. e4 {[%clk
0:01:41.7]} 15... Bxc3 {[%clk 0:00:35.7]} 16. exd5 {[%clk 0:01:41.6]} 16... Bb4
{[%clk 0:00:30.2]} 17. dxe6 {[%clk 0:01:39.7]} 17... fxe6 {[%clk 0:00:30.5]} 18.
Ne5 {[%clk 0:01:26.7]} 18... Nd5 {[%clk 0:00:24]} 19. Qb3 {[%clk 0:01:13.2]}
19... Qd6 {[%clk 0:00:20.6]} 20. Rac1 {[%clk 0:01:09.5]} 20... a5 {[%clk
0:00:18.8]} 21. Rc2 {[%clk 0:01:09.4]} 21... c6 {[%clk 0:00:18.7]} 22. Re2
{[%clk 0:01:09.7]} 22... Rae8 {[%clk 0:00:18]} 23. h4 {[%clk 0:01:08.8]} 23...
Rd8 {[%clk 0:00:11.5]} 24. Be4 {[%clk 0:01:07.6]} 24... Nf6 {[%clk 0:00:11.1]}
25. Bc2 {[%clk 0:01:08]} 25... Qd5 {[%clk 0:00:10.7]} 26. Qd3 {[%clk 0:01:08.2]}
26... Bd6 {[%clk 0:00:07.1]} 27. Bb3 {[%clk 0:01:07.4]} 27... Bxe5 {[%clk
0:00:02.5]} 28. Bxd5 {[%clk 0:01:07]} 1-0

[Event "*** SCC Grand Prix: Titled Tuesday Blitz"]
[Site "Chess.com"]
[Date "2020.08.11"]
[Round "1"]
[White "Chessdemon2019"]
[Black "Evgeny81"]
[Result "0-1"]
[WhiteElo "2366"]
[BlackElo "2735"]
[TimeControl "180+1"]
[EndTime "10:05:59 PDT"]
[Termination "Evgeny81 won by resignation"]

1. e4 {[%clk 0:03:00.9]} 1... c5 {[%clk 0:02:58.7]} 2. Nf3 {[%clk 0:02:59.8]}
2... Nc6 {[%clk 0:02:59.1]} 3. Bb5 {[%clk 0:02:58.8]} 3... e6 {[%clk 0:02:57.6]}
4. O-O {[%clk 0:02:55.2]} 4... Nge7 {[%clk 0:02:57.6]} 5. c3 {[%clk 0:02:54.7]}
5... a6 {[%clk 0:02:56.5]} 6. Ba4 {[%clk 0:02:54.7]} 6... b5 {[%clk 0:02:55.9]}
7. Bc2 {[%clk 0:02:54.4]} 7... c4 {[%clk 0:02:56.2]} 8. d4 {[%clk 0:02:54.1]}
8... cxd3 {[%clk 0:02:55.9]} 9. Bxd3 {[%clk 0:02:54.8]} 9... d5 {[%clk
0:02:51.5]} 10. exd5 {[%clk 0:02:54.6]} 10... Nxd5 {[%clk 0:02:49.1]} 11. Re1
{[%clk 0:02:50.2]} 11... Be7 {[%clk 0:02:48.1]} 12. Nbd2 {[%clk 0:02:49.4]}
12... Nf4 {[%clk 0:02:40.8]} 13. Be4 {[%clk 0:02:48.5]} 13... Bb7 {[%clk
0:02:40.2]} 14. Nb3 {[%clk 0:02:41.7]} 14... Qxd1 {[%clk 0:02:35.3]} 15. Rxd1
{[%clk 0:02:41.9]} 15... Ne2+ {[%clk 0:02:31.7]} 16. Kf1 {[%clk 0:02:42]} 16...
Nxc1 {[%clk 0:02:31.8]} 17. Raxc1 {[%clk 0:02:42.9]} 17... Rb8 {[%clk
0:02:00.5]} 18. Rd2 {[%clk 0:02:26.5]} 18... f5 {[%clk 0:01:52]} 19. Bxc6+
{[%clk 0:02:21.6]} 19... Bxc6 {[%clk 0:01:52.9]} 20. Nbd4 {[%clk 0:02:21.6]}
20... Bd5 {[%clk 0:01:50.8]} 21. Re1 {[%clk 0:02:20.1]} 21... Rb6 {[%clk
0:01:43.9]} 22. Nxf5 {[%clk 0:02:14.2]} 22... Bc4+ {[%clk 0:01:43.3]} 23. Kg1
{[%clk 0:02:10.3]} 23... exf5 {[%clk 0:01:43.5]} 24. b3 {[%clk 0:02:09.1]} 24...
Bf7 {[%clk 0:01:38.8]} 25. Rde2 {[%clk 0:02:07.2]} 25... Rb7 {[%clk 0:01:36.8]}
26. Nd4 {[%clk 0:02:07.4]} 26... Kf8 {[%clk 0:01:20.3]} 27. Nxf5 {[%clk
0:02:07.3]} 27... Bf6 {[%clk 0:01:20.4]} 28. Nd6 {[%clk 0:02:07.3]} 28... Re7
{[%clk 0:01:18.1]} 29. c4 {[%clk 0:02:00.6]} 29... bxc4 {[%clk 0:01:16.7]} 30.
bxc4 {[%clk 0:02:00.6]} 30... g6 {[%clk 0:01:07.5]} 31. c5 {[%clk 0:02:00.3]}
31... Rc7 {[%clk 0:01:02.4]} 32. Ne4 {[%clk 0:01:45.8]} 32... Be7 {[%clk
0:00:56.7]} 33. Rc1 {[%clk 0:01:43.7]} 33... Kg7 {[%clk 0:00:54.4]} 34. f3
{[%clk 0:01:29.9]} 34... Rhc8 {[%clk 0:00:53.2]} 35. Rec2 {[%clk 0:01:28.3]}
35... Bd5 {[%clk 0:00:53.1]} 36. Kf2 {[%clk 0:01:25.8]} 36... Bxe4 {[%clk
0:00:52.8]} 37. fxe4 {[%clk 0:01:26.3]} 37... Rxc5 {[%clk 0:00:52.3]} 38. Rxc5
{[%clk 0:01:24.7]} 38... Rxc5 {[%clk 0:00:53.2]} 39. Rd1 {[%clk 0:01:24.4]}
39... Rc2+ {[%clk 0:00:52.2]} 40. Kf3 {[%clk 0:01:24.7]} 40... Rxa2 {[%clk
0:00:51.4]} 41. Rd7 {[%clk 0:01:25.3]} 41... Kf7 {[%clk 0:00:51]} 42. Ra7 {[%clk
0:01:24.3]} 42... h5 {[%clk 0:00:48.5]} 43. h3 {[%clk 0:01:22.5]} 43... Ke6
{[%clk 0:00:47.5]} 44. g4 {[%clk 0:01:21.8]} 44... h4 {[%clk 0:00:45.7]} 45. Kf4
{[%clk 0:01:16.5]} 45... Rf2+ {[%clk 0:00:42.9]} 46. Ke3 {[%clk 0:01:14.9]}
46... Bc5+ {[%clk 0:00:43.5]} 0-1

[Event "*** SCC Grand Prix: Titled Tuesday Blitz"]
[Site "Chess.com"]
[Date "2020.08.11"]
[Round "1"]
[White "LaPorfia"]
[Black "GalperinPlaton"]
[Result "0-1"]
[WhiteElo "2257"]
[BlackElo "2606"]
[TimeControl "180+1"]
[EndTime "10:06:00 PDT"]
[Termination "GalperinPlaton won by resignation"]

1. d4 {[%clk 0:03:00.3]} 1... Nf6 {[%clk 0:02:57.9]} 2. Nf3 {[%clk 0:02:59.5]}
2... g6 {[%clk 0:02:55.7]} 3. Nc3 {[%clk 0:02:58.8]} 3... d5 {[%clk 0:02:53.3]}
4. Bf4 {[%clk 0:02:58.4]} 4... Bg7 {[%clk 0:02:45.7]} 5. e3 {[%clk 0:02:57.6]}
5... O-O {[%clk 0:02:45.6]} 6. Be2 {[%clk 0:02:54.1]} 6... c5 {[%clk 0:02:45.7]}
7. Ne5 {[%clk 0:02:52.8]} 7... Nc6 {[%clk 0:02:38.4]} 8. O-O {[%clk 0:02:52.2]}
8... Bf5 {[%clk 0:02:15.4]} 9. Re1 {[%clk 0:02:33.6]} 9... Rc8 {[%clk
0:02:06.5]} 10. a3 {[%clk 0:02:30.2]} 10... cxd4 {[%clk 0:01:58.5]} 11. exd4
{[%clk 0:02:29.7]} 11... Qb6 {[%clk 0:01:59.1]} 12. Nxc6 {[%clk 0:02:16.2]}
12... Rxc6 {[%clk 0:01:49.7]} 13. Bb5 {[%clk 0:02:03.1]} 13... Rxc3 {[%clk
0:01:48.1]} 14. bxc3 {[%clk 0:02:03.1]} 14... Qxb5 {[%clk 0:01:47.9]} 15. Rxe7
{[%clk 0:02:01.7]} 15... Rc8 {[%clk 0:01:44]} 16. Rb1 {[%clk 0:02:01.2]} 16...
Qa5 {[%clk 0:01:20.7]} 17. Rbxb7 {[%clk 0:01:59.6]} 17... Be6 {[%clk 0:01:19.9]}
18. Be5 {[%clk 0:01:47.6]} 18... Qxc3 {[%clk 0:01:16.3]} 19. h3 {[%clk
0:01:43.6]} 19... h5 {[%clk 0:01:13.4]} 20. Rec7 {[%clk 0:00:30.8]} 20... Rxc7
{[%clk 0:01:10.8]} 21. Rxc7 {[%clk 0:00:31.7]} 21... Qxa3 {[%clk 0:01:11]} 22.
c3 {[%clk 0:00:31.9]} 22... Ne8 {[%clk 0:01:01.3]} 23. Rb7 {[%clk 0:00:23.3]}
23... Bxe5 {[%clk 0:00:59.7]} 24. dxe5 {[%clk 0:00:24.2]} 24... Qxc3 {[%clk
0:00:58.8]} 25. Rb8 {[%clk 0:00:23.6]} 25... Kf8 {[%clk 0:00:55.4]} 26. Qa4
{[%clk 0:00:23.3]} 26... Qe1+ {[%clk 0:00:53]} 27. Kh2 {[%clk 0:00:21.8]} 27...
Qxe5+ {[%clk 0:00:53.9]} 0-1

[Event "*** SCC Grand Prix: Titled Tuesday Blitz"]
[Site "Chess.com"]
[Date "2020.08.11"]
[Round "1"]
[White "Shield12"]
[Black "GiorgianBarbosa"]
[Result "1-0"]
[WhiteElo "2849"]
[BlackElo "2414"]
[TimeControl "180+1"]
[EndTime "10:06:01 PDT"]
[Termination "Shield12 won by resignation"]

1. e4 {[%clk 0:03:00.9]} 1... c6 {[%clk 0:02:58.4]} 2. d4 {[%clk 0:02:59.7]}
2... d5 {[%clk 0:02:59.3]} 3. exd5 {[%clk 0:03:00.6]} 3... cxd5 {[%clk
0:02:59.6]} 4. Bd3 {[%clk 0:03:01]} 4... Nf6 {[%clk 0:03:00.5]} 5. c3 {[%clk
0:03:00.9]} 5... g6 {[%clk 0:02:55.9]} 6. h3 {[%clk 0:03:00.4]} 6... Bg7 {[%clk
0:02:56.8]} 7. Bf4 {[%clk 0:03:00.1]} 7... O-O {[%clk 0:02:54.4]} 8. Nf3 {[%clk
0:03:00.1]} 8... Nc6 {[%clk 0:02:45.2]} 9. O-O {[%clk 0:02:59]} 9... Bf5 {[%clk
0:02:45.7]} 10. Be2 {[%clk 0:02:58.9]} 10... Ne4 {[%clk 0:02:40.4]} 11. Nbd2
{[%clk 0:02:58.1]} 11... Qd7 {[%clk 0:02:12.4]} 12. Re1 {[%clk 0:02:56.2]} 12...
Rfe8 {[%clk 0:01:52]} 13. Nb3 {[%clk 0:02:54.2]} 13... Bxh3 {[%clk 0:01:29.8]}
14. gxh3 {[%clk 0:02:45.2]} 14... Qxh3 {[%clk 0:01:30.7]} 15. Nh2 {[%clk
0:02:11.8]} 15... e5 {[%clk 0:01:21.3]} 16. dxe5 {[%clk 0:02:10.5]} 16... Nxe5
{[%clk 0:01:20.3]} 17. Qxd5 {[%clk 0:01:57.2]} 17... Qf5 {[%clk 0:00:55.1]} 18.
Bc4 {[%clk 0:01:28.5]} 18... Nxc4 {[%clk 0:00:25.5]} 19. Qxf5 {[%clk 0:01:28.1]}
19... gxf5 {[%clk 0:00:25.4]} 20. Re2 {[%clk 0:01:27.2]} 20... Nf6 {[%clk
0:00:19.5]} 21. Rae1 {[%clk 0:01:26.1]} 21... Rxe2 {[%clk 0:00:18.8]} 22. Rxe2
{[%clk 0:01:27]} 22... Ng4 {[%clk 0:00:18.4]} 23. Nf3 {[%clk 0:01:21.1]} 23...
Bf6 {[%clk 0:00:16.4]} 24. Nbd4 {[%clk 0:01:20.7]} 24... Rd8 {[%clk 0:00:09.5]}
25. Nxf5 {[%clk 0:01:16.8]} 25... Rd1+ {[%clk 0:00:09.6]} 26. Kg2 {[%clk
0:01:16.6]} 26... h5 {[%clk 0:00:09.5]} 27. b3 {[%clk 0:01:14.9]} 27... Nb6
{[%clk 0:00:08.4]} 28. c4 {[%clk 0:01:15.1]} 28... Rc1 {[%clk 0:00:08.2]} 29.
Bxc1 {[%clk 0:01:13.1]} 1-0